fUSD/lending_fUSD_20251105
["ID","MTS","AMOUNT","RATE_DAILY","PERIOD"]
[393224916,1762347041278,-8.40862346,0.000175,2]
[393224917,1762347041288,-1600.0,0.000175,6]
[393224918,1762347041297,-821.13678012,0.00017502,2]
[393224919,1762347041307,-1471.1433555,0.0001754,2]
[393224920,1762347041317,-54169.7882544,0.0001754,2]
[393224921,1762347041326,-893.58488772,0.00017551,2]
[393224922,1762347041336,-821.13678012,0.00017552,2]
[393224923,1762347041357,-150.0,0.00017552,2]
[393224924,1762347041371,-3044.72897035,0.00017561,2]
[393224925,1762347041384,-159.94770509,0.00017573,2]
[393224926,1762347041393,-500.0,0.00017573,2]
[393224927,1762347041406,-28154.0361753,0.00017573,2]
[393224928,1762347041415,-10504.8329,0.00017588,2]
[393224929,1762347041425,-300.0,0.000176,6]
[393224930,1762347041435,-821.13678012,0.00017601,2]
[393224931,1762347041444,-3044.72897035,0.00017629,2]
[393224932,1762347041454,-166.66,0.00017631,2]
[393224933,1762347041463,-821.13678012,0.00017651,2]
[393224934,1762347041473,-607.18632361,0.00017692,2]
[393224935,1762347041482,-3044.72897035,0.00017697,2]
[393224936,1762347041491,-500.0,0.00017698,2]
[393224937,1762347041501,-500.0,0.00017698,2]
[393224938,1762347041510,-500.0,0.00017698,2]
[393224939,1762347041519,-500.0,0.00017698,2]
[393224940,1762347041529,-300.0,0.000177,6]
[393224941,1762347041538,-821.13678012,0.00017701,2]
[393224942,1762347041548,-150.99,0.00017728,2]
[393224943,1762347041558,-2352.84,0.00017728,2]
[393224944,1762347041567,-161.74166162,0.00017732,2]
[393224945,1762347041577,-2498.0,0.00017745,2]
[393224946,1762347041587,-821.13678012,0.00017751,2]
[393224947,1762347041596,-1000.0,0.00017761,2]
[393224948,1762347041605,-3044.72897035,0.00017764,2]
[393224949,1762347041615,-150.0,0.00017771,2]
[393224950,1762347041627,-150.0,0.00017781,2]
[393224951,1762347041636,-150.0,0.00017781,2]
[393224952,1762347041646,-300.0,0.00017781,2]
[393224953,1762347041655,-150.0,0.00017795,2]
[393224954,1762347041665,-221.75791629,0.00017799,2]
[393224955,1762347041686,-5052.6671066,0.000178,2]
[393224956,1762347041697,-300.0,0.000178,6]
[393224957,1762347041707,-821.13678012,0.000178,2]
[393224958,1762347041717,-3044.72897035,0.00017832,2]
[393224959,1762347041727,-821.13678012,0.0001785,2]
[393224960,1762347041736,-200.0,0.00017856,2]
[393224961,1762347041746,-182.109,0.00017862,2]
[393224962,1762347041755,-976.863,0.00017862,2]
[393224963,1762347041765,-1722.386,0.00017867,2]
[393224964,1762347041775,-200.0,0.00017889,2]
[393224965,1762347041785,-500.0,0.0001789,2]
[393224966,1762347041795,-5000.0,0.00017899,2]
[393224967,1762347041804,-1130.54037103,0.000179,2]
[393224968,1762347041814,-1223.90435123,0.000179,3]
[393224969,1762347041824,-821.13678012,0.000179,2]
[393224970,1762347041834,-300.0,0.000179,6]
[393224971,1762347041844,-1509.40944706,0.000179,2]
[393224972,1762347041854,-1829.00545518,0.000179,2]
[393224973,1762347041864,-428.89678196,0.000179,2]
[393224974,1762347041874,-583.57029722,0.000179,2]
[393224975,1762347041884,-3044.72897035,0.000179,2]
[393224976,1762347041893,-649.95545227,0.000179,3]
[393224977,1762347041903,-5448.52839387,0.000179,2]
[393224978,1762347041913,-500.0,0.00017921,2]
[393224979,1762347041923,-1118.2018509,0.00017921,2]
[393224980,1762347041932,-1000.0,0.00017921,2]
[393224981,1762347041943,-500.0,0.00017921,2]
[393224982,1762347041954,-150.0,0.00017949,2]
[393224983,1762347041963,-153.96997627,0.00017959,2]
[393224984,1762347041972,-1000.0,0.0001797,2]
[393224985,1762347041982,-500.0,0.0001797,2]
[393224986,1762347041991,-500.0,0.0001797,2]
[393224987,1762347042000,-500.0,0.0001797,2]
[393224988,1762347042010,-1000.0,0.0001797,2]
[393224989,1762347042020,-500.0,0.0001797,2]
[393224990,1762347042029,-500.0,0.0001797,2]
[393224991,1762347042038,-1000.0,0.0001797,2]
[393224992,1762347042047,-1000.0,0.0001797,2]
[393224993,1762347042217,-500.0,0.0001797,2]
[393224994,1762347042227,-500.0,0.0001797,2]
[393224995,1762347042236,-1000.0,0.0001797,2]
[393224996,1762347042245,-800.63275327,0.0001797,2]
[393224997,1762347042254,-1000.0,0.0001797,2]
[393224998,1762347042263,-1000.0,0.0001797,2]
[393224999,1762347042272,-1000.0,0.0001797,2]
[393225000,1762347042281,-1000.0,0.0001797,2]
[393225001,1762347042291,-1000.0,0.0001797,2]
[393225002,1762347042300,-1275.49060352,0.0001797,2]
[393225003,1762347042309,-150.0,0.0001797,2]
[393225004,1762347042319,-500.0,0.00017972,2]
[393225005,1762347042329,-184.0,0.00017973,2]
[393225006,1762347042338,-500.0,0.00017973,2]
[393225007,1762347042347,-500.0,0.00017973,2]
[393225008,1762347042360,-500.0,0.00017973,2]
[393225009,1762347042369,-500.0,0.00017973,2]
[393225010,1762347042380,-500.0,0.00017973,2]
[393225012,1762347042390,-500.0,0.00017973,2]
[393225015,1762347042401,-276.73119563,0.00017973,2]
[393225019,1762347042410,-500.31544654,0.00017973,2]
[393225021,1762347042420,-500.0,0.00017973,2]
[393225023,1762347042430,-500.0,0.00017973,2]
[393225025,1762347042440,-500.68661761,0.00017973,2]
[393225027,1762347042449,-500.0,0.00017973,2]
[393225029,1762347042458,-500.0,0.00017973,2]
[393225031,1762347042467,-500.0,0.00017973,2]
[393225033,1762347042476,-251.93803896,0.00017973,2]
[393225035,1762347042485,-500.80401486,0.00017973,2]
[393225037,1762347042495,-500.0,0.00017973,2]
[393225039,1762347042503,-500.0,0.00017973,2]
[393225041,1762347042512,-502.60716521,0.00017973,2]
[393225043,1762347042521,-500.0,0.00017973,2]
[393225045,1762347042530,-500.0,0.00017973,2]
[393225047,1762347042539,-500.0,0.00017973,2]
[393225049,1762347042549,-500.0,0.00017973,2]
[393225051,1762347042558,-162.3771738,0.00017973,2]
[393225053,1762347042567,-500.0,0.00017973,2]
[393225055,1762347042577,-500.0,0.00017973,2]
[393225057,1762347042586,-500.0,0.00017973,2]
[393225058,1762347042596,-500.0,0.00017973,2]
[393225061,1762347042606,-502.97445239,0.00017973,2]
[393225063,1762347042615,-500.0,0.00017973,2]
[393225065,1762347042625,-500.0,0.00017973,2]
[393225067,1762347042634,-500.0,0.00017973,2]
[393225069,1762347042644,-482.56534119,0.00017976,2]
[393225071,1762347042653,-500.0,0.00017976,2]
[393225073,1762347042662,-330.21585562,0.00017976,2]
[393225075,1762347042671,-627.05762213,0.00017976,2]
[393225077,1762347042680,-500.0,0.00017976,2]
[393225079,1762347042689,-500.0,0.00017976,2]
[393225081,1762347042699,-500.0,0.00017976,2]
[393225083,1762347042708,-500.0,0.00017976,2]
[393225085,1762347042718,-104358.5250694,0.00017977,2]
[393225087,1762347042727,-415.63,0.00017979,2]
[393225089,1762347042737,-415.63,0.00017979,2]
[393225091,1762347042746,-415.63,0.00017979,2]
[393225093,1762347042756,-162.12037659,0.00017984,2]
[393225095,1762347042765,-150.0,0.00017989,2]
[393225097,1762347042774,-150.0,0.00017989,2]
[393225099,1762347042783,-500.0,0.00017989,2]
[393225101,1762347042792,-150.0,0.00017989,2]
[393225103,1762347042802,-500.0,0.00017989,2]
[393225105,1762347042811,-435.0,0.00017989,2]
[393225107,1762347042820,-154.26057965,0.00017989,2]
[393225108,1762347042830,-500.0,0.00017989,2]
[393225109,1762347042839,-150.0,0.00017989,2]
[393225110,1762347042848,-150.0,0.00017989,2]
[393225111,1762347042857,-150.0,0.00017989,2]
[393225112,1762347042869,-150.0,0.00017989,2]
[393225113,1762347042882,-150.0,0.00017989,2]
[393225114,1762347042892,-150.0,0.00017989,2]
[393225115,1762347042902,-500.0,0.00017989,2]
[393225116,1762347042912,-500.0,0.00017989,2]
[393225117,1762347042923,-150.0,0.00017989,2]
[393225118,1762347042932,-150.0,0.00017989,2]
[393225119,1762347042941,-158.86102011,0.00017989,2]
[393225120,1762347042951,-150.0,0.00017989,2]
[393225121,1762347042960,-150.0,0.00017989,2]
[393225122,1762347042969,-217.3955486,0.00017989,2]
[393225123,1762347042979,-150.0,0.00017989,2]
[393225124,1762347042989,-150.0,0.00017989,2]
[393225125,1762347042999,-150.0,0.00017989,2]
[393225126,1762347043008,-150.0,0.00017989,2]
[393225127,1762347043018,-1607.5046755,0.0001799,2]
[393225128,1762347043027,-1607.5046755,0.0001799,2]
[393225129,1762347043037,-1607.5046755,0.0001799,2]
[393225130,1762347043047,-5888.0,0.00017991,2]
[393225131,1762347043056,-476.41,0.00017991,2]
[393225132,1762347043065,-151.0,0.00017997,2]
[393225133,1762347043076,-150.0,0.00017997,2]
[393225134,1762347043087,-150.0,0.00017997,2]
[393225135,1762347043096,-399.20805107,0.00017997,2]
[393225136,1762347043107,-174.5087175,0.00017997,2]
[393225137,1762347043116,-151.0,0.00017997,2]
[393225138,1762347043128,-500.0,0.00017999,2]
[393225139,1762347043137,-500.0,0.00017999,2]
[393225141,1762347043146,-266.17310046,0.00017999,2]
[393225142,1762347043155,-5462.4486838,0.00017999,2]
[393225143,1762347043165,-1000.0,0.00017999,2]
[393225144,1762347043174,-500.0,0.00017999,2]
[393225145,1762347043183,-500.0,0.00017999,2]
[393225146,1762347043192,-561.95744653,0.00017999,2]
[393225147,1762347043201,-500.0,0.00017999,2]
[393225148,1762347043210,-226.71413784,0.00017999,2]
[393225149,1762347043219,-300.0,0.00017999,2]
[393225150,1762347043228,-502.24,0.00017999,2]
[393225152,1762347043238,-300.0,0.00017999,2]
[393225154,1762347043248,-300.0,0.00017999,2]
[393225156,1762347043257,-666.0,0.00017999,2]
[393225158,1762347043266,-500.0,0.00017999,2]
[393225160,1762347043275,-500.0,0.00017999,2]
[393225162,1762347043284,-500.0,0.00017999,2]
[393225163,1762347043293,-500.0,0.00017999,2]
[393225164,1762347043302,-500.0,0.00017999,2]
[393225165,1762347043311,-500.0,0.00017999,2]
[393225166,1762347043320,-500.0,0.00017999,2]
[393225167,1762347043329,-500.0,0.00017999,2]
[393225168,1762347043339,-589.41461623,0.00017999,2]
[393225169,1762347043348,-3759.0,0.00018,2]
[393225170,1762347043362,-1101967.91719397,0.00018,2]
[393225171,1762347043372,-880824.03392355,0.00018,2]
[393225172,1762347043639,-226.86307117,0.000175,2]
[393225173,1762347043648,-349.61692883,0.000179,2]
[393225174,1762347043659,-256.30326041,0.000179,2]
[393225175,1762347043668,-84.06701824,0.00017989,2]
[393225176,1762347043679,-65.93298176,0.00017989,2]
[393225177,1762347043689,-8308.43143056,0.00018,2]
[393225178,1762347043700,-893.48323689,0.00018,2]
[393225179,1762347043711,-1008.52999998,0.00018,2]
[393225180,1762347043723,-1820.01521157,0.00018,2]
[393225181,1762347045804,-159.53620973,0.00017471,2]
[393225182,1762347045814,-1067.79353977,0.0001764,2]
[393225183,1762347045823,-874.96853589,0.00017667,2]
[393225184,1762347045833,-988.17031461,0.000179,3]
[393225185,1762347045913,-1511.82968539,0.000179,3]
[393225186,1762347045922,-415.63,0.00017979,2]
[393225187,1762347045932,-500.0,0.00017989,2]
[393225188,1762347045941,-150.0,0.00017989,2]
[393225189,1762347045951,-6202.72710966,0.00018,2]
[393225192,1762347063829,500.0,0.00016356,2]
[393225196,1762347216883,-196.14,0.00016712,2]
[393225197,1762347216909,-250.0,0.0001683,2]
[393225198,1762347216936,-500.0,0.00017,2]
[393225199,1762347216968,-201.33738244,0.00017184,2]
[393225200,1762347216994,-435.0,0.00017283,2]
[393225201,1762347217021,-300.0,0.00017283,2]
[393225202,1762347217054,-500.0,0.00017283,2]
[393225203,1762347217083,-238.45523817,0.00017283,2]
[393225204,1762347217620,-1929.44475878,0.00017284,2]
[393225205,1762347219697,-3813.47134122,0.00017284,2]
[393225206,1762347219734,-2373.06731756,0.00017284,2]
[393225207,1762347222730,-10000.01,0.00017284,2]
[393225208,1762347492735,150.0,0.00016561,2]
[393225209,1762347526473,-179.40304107,0.00016606,2]
[393225210,1762347529009,-206.67756474,0.00016606,2]
[393225211,1762347534865,-176.28939419,0.00016606,2]
[393225212,1762347556478,-300.0,0.00016746,2]
[393225213,1762347556503,-0.00827378,0.00016747,2]
[393225254,1762347627289,-300.0,0.00016746,2]
[393225255,1762347627307,-300.0,0.00016747,2]
[393225256,1762347627318,-3400.0,0.00016747,2]
[393225296,1762347668105,-1000.0,0.00016747,2]
[393225297,1762347683910,151.0,0.00015919,2]
[393225298,1762347684850,-195.0,0.00016692,2]
[393225299,1762347684873,-13801.0,0.00016747,2]
[393225303,1762347871506,-532.1485212,0.00016747,2]
[393225304,1762347875082,-166.61164153,0.00016746,2]
[393225305,1762347886525,-133.38835847,0.00016746,2]
[393225306,1762347886546,-155.34052545,0.00016747,2]
[393225307,1762347888779,-159.85303996,0.00016747,2]
[393225308,1762347890339,-229.81438506,0.00016747,2]
[393225309,1762347893141,-314.60852207,0.00016747,2]
[393225310,1762347894605,-188.34524643,0.00016747,2]
[393225311,1762347896220,-185.56081328,0.00016747,2]
[393225312,1762347899591,-160.20263587,0.00016747,2]
[393225313,1762347902895,-300.0,0.00016746,2]
[393225324,1762347931469,-195.0,0.00016746,2]
[393225325,1762347931492,-219.43918672,0.00016747,2]
[393225326,1762347934186,-426.16223111,0.00016747,2]
[393225327,1762347936884,-300.01246968,0.00016747,2]
[393225328,1762347976261,565.74,0.00016345,2]
[393225329,1762347989541,214.56,0.00016327,2]
[393225330,1762348006517,-445.37056599,0.00016647,2]
[393225331,1762348021884,-299.48963401,0.00016647,2]
[393225357,1762348231792,-0.95618289,0.00016746,2]
[393225358,1762348231824,-256.11513612,0.00016746,2]
[393225359,1762348231884,-42.92868099,0.00016746,2]
[393225360,1762348231894,-1200.0,0.00016746,2]
[393225361,1762348231903,-300.0,0.00016746,2]
[393225362,1762348231913,-11421.01557076,0.00016747,2]
[393225363,1762348231925,-2097.36857863,0.00016747,2]
[393225364,1762348231935,-195.0,0.00016753,2]
[393225365,1762348231944,-500.0,0.00016792,2]
[393225366,1762348231954,-500.0,0.00017,2]
[393225367,1762348231963,-765.80103,0.00017,2]
[393225368,1762348231973,-500.0,0.00017,2]
[393225369,1762348231982,-277.35679052,0.00017066,2]
[393225370,1762348231992,-449.38309733,0.00017073,2]
[393225371,1762348232002,-500.0,0.00017073,2]
[393225372,1762348232011,-500.0,0.00017073,2]
[393225373,1762348232021,-500.0,0.00017073,2]
[393225374,1762348232031,-500.0,0.00017073,2]
[393225375,1762348232040,-500.31544654,0.00017073,2]
[393225376,1762348232050,-500.0,0.00017073,2]
[393225377,1762348232059,-500.0,0.00017073,2]
[393225378,1762348232069,-500.0,0.00017073,2]
[393225379,1762348232078,-150.0,0.00017075,2]
[393225380,1762348232088,-161.74166162,0.00017076,2]
[393225381,1762348232097,-500.0,0.00017076,2]
[393225382,1762348232106,-500.0,0.00017076,2]
[393225383,1762348232116,-500.0,0.00017076,2]
[393225384,1762348232126,-500.0,0.00017076,2]
[393225385,1762348232135,-500.0,0.00017076,2]
[393225386,1762348232145,-500.0,0.00017076,2]
[393225387,1762348232154,-500.0,0.00017076,2]
[393225388,1762348232168,-500.0,0.00017076,2]
[393225389,1762348232177,-500.0,0.00017076,2]
[393225390,1762348232187,-500.0,0.00017076,2]
[393225391,1762348232197,-500.0,0.00017076,2]
[393225392,1762348232206,-560.43016454,0.00017076,2]
[393225393,1762348232216,-74845.82708423,0.00017077,2]
[393225394,1762348232229,-14488.63767179,0.00017077,2]
[393225395,1762348232239,-5002.27644666,0.00017183,2]
[393225397,1762348232249,-165.04661386,0.00017184,2]
[393225399,1762348232258,-175.40956522,0.00017184,2]
[393225400,1762348232268,-3044.69534218,0.00017184,2]
[393225401,1762348232279,-644.91317667,0.00017184,2]
[393225402,1762348232289,-224.68232437,0.000172,2]
[393225403,1762348232298,-5821.60449894,0.00017234,2]
[393225406,1762348237689,-13386.4264774,0.00017234,2]
[393225407,1762348237701,-511.53158728,0.00017234,2]
[393225408,1762348237712,-1176.76878117,0.00017234,2]
[393225409,1762348237748,-1972.29999997,0.00017234,2]
[393225410,1762348237760,-20259.32736224,0.00017234,2]
[393225411,1762348237771,-214.56,0.00017234,2]
[393225412,1762348237781,-2882.58048646,0.00017263,2]
[393225413,1762348237807,-1097.0,0.00017263,2]
[393225414,1762348237818,-693.89683839,0.00017263,2]
[393225415,1762348237830,-328.79912179,0.00017263,2]
[393225416,1762348237840,-175.40956515,0.00017264,2]
[393225417,1762348237849,-1726.33431306,0.00017264,2]
[393225418,1762348240070,-1963.27420578,0.00017264,2]
[393225419,1762348240080,-500.0,0.00017273,2]
[393225420,1762348240090,-500.0,0.00017273,2]
[393225421,1762348240100,-500.0,0.00017273,2]
[393225422,1762348240109,-500.0,0.00017273,2]
[393225423,1762348240119,-500.0,0.00017273,2]
[393225425,1762348240129,-648.2935781,0.00017273,2]
[393225427,1762348240138,-500.0,0.00017273,2]
[393225429,1762348240147,-500.0,0.00017273,2]
[393225430,1762348240157,-500.80401486,0.00017273,2]
[393225432,1762348240166,-500.0,0.00017273,2]
[393225434,1762348240176,-500.0,0.00017273,2]
[393225436,1762348240185,-502.60716521,0.00017273,2]
[393225438,1762348240195,-162.3771738,0.00017273,2]
[393225440,1762348240205,-500.0,0.00017273,2]
[393225442,1762348240215,-500.0,0.00017273,2]
[393225444,1762348240224,-500.0,0.00017273,2]
[393225446,1762348240234,-500.0,0.00017273,2]
[393225448,1762348240243,-159.94770509,0.00017273,2]
[393225450,1762348240253,-500.0,0.00017273,2]
[393225452,1762348240262,-500.0,0.00017273,2]
[393225454,1762348240271,-500.0,0.00017273,2]
[393225456,1762348240281,-500.0,0.00017273,2]
[393225458,1762348240290,-500.0,0.00017273,2]
[393225460,1762348240300,-500.0,0.00017273,2]
[393225462,1762348240310,-500.0,0.00017273,2]
[393225464,1762348240319,-500.0,0.00017273,2]
[393225466,1762348240329,-502.97445239,0.00017273,2]
[393225469,1762348240339,-500.0,0.00017273,2]
[393225470,1762348240348,-500.0,0.00017273,2]
[393225473,1762348240359,-500.0,0.00017273,2]
[393225474,1762348240368,-500.0,0.00017273,2]
[393225477,1762348240378,-500.0,0.00017273,2]
[393225478,1762348240387,-596.49,0.00017273,2]
[393225480,1762348240396,-151.0,0.00017274,2]
[393225483,1762348240406,-151.0,0.00017274,2]
[393225484,1762348240415,-151.0,0.00017274,2]
[393225486,1762348240425,-151.0,0.00017274,2]
[393225488,1762348240435,-151.0,0.00017274,2]
[393225490,1762348240444,-151.0,0.00017274,2]
[393225505,1762348240645,-151.0,0.00017274,2]
[393225506,1762348240655,-152.0,0.00017274,2]
[393225507,1762348240665,-151.0,0.00017274,2]
[393225508,1762348240675,-151.0,0.00017274,2]
[393225509,1762348240684,-151.0,0.00017274,2]
[393225510,1762348240694,-500.0,0.00017274,2]
[393225512,1762348240703,-151.0,0.00017274,2]
[393225514,1762348240712,-500.0,0.00017274,2]
[393225516,1762348240721,-151.0,0.00017274,2]
[393225518,1762348240733,-151.0,0.00017274,2]
[393225520,1762348240744,-151.0,0.00017274,2]
[393225522,1762348240753,-500.0,0.00017274,2]
[393225523,1762348240762,-151.0,0.00017274,2]
[393225525,1762348240772,-500.0,0.00017274,2]
[393225528,1762348240782,-151.0,0.00017274,2]
[393225530,1762348240792,-500.0,0.00017274,2]
[393225531,1762348240801,-500.0,0.00017274,2]
[393225533,1762348240810,-151.0,0.00017274,2]
[393225535,1762348240820,-500.0,0.00017274,2]
[393225537,1762348240829,-500.0,0.00017274,2]
[393225540,1762348240839,-151.0,0.00017274,2]
[393225542,1762348240848,-500.0,0.00017274,2]
[393225543,1762348240858,-500.0,0.00017274,2]
[393225545,1762348240867,-500.0,0.00017274,2]
[393225547,1762348240878,-500.0,0.00017274,2]
[393225549,1762348240887,-151.0,0.00017274,2]
[393225551,1762348240896,-500.0,0.00017274,2]
[393225553,1762348240906,-500.0,0.00017274,2]
[393225555,1762348240915,-151.0,0.00017274,2]
[393225557,1762348240925,-500.0,0.00017274,2]
[393225558,1762348240934,-500.0,0.00017274,2]
[393225559,1762348240944,-500.0,0.00017274,2]
[393225560,1762348240955,-500.0,0.00017274,2]
[393225561,1762348240965,-151.0,0.00017274,2]
[393225562,1762348240975,-500.0,0.00017274,2]
[393225563,1762348240984,-500.0,0.00017274,2]
[393225564,1762348240993,-151.0,0.00017274,2]
[393225565,1762348241003,-500.0,0.00017274,2]
[393225566,1762348241012,-151.0,0.00017274,2]
[393225567,1762348241022,-520.8648782,0.00017274,2]
[393225568,1762348241032,-151.0,0.00017274,2]
[393225569,1762348241042,-151.0,0.00017274,2]
[393225570,1762348241051,-181.32218374,0.00017274,2]
[393225571,1762348241062,-151.0,0.00017274,2]
[393225572,1762348241072,-250.0,0.00017274,2]
[393225573,1762348241081,-250.0,0.00017274,2]
[393225574,1762348241091,-151.0,0.00017274,2]
[393225575,1762348241101,-250.0,0.00017274,2]
[393225576,1762348241110,-151.0,0.00017274,2]
[393225577,1762348241119,-250.0,0.00017274,2]
[393225578,1762348241132,-180.82586183,0.00017274,2]
[393225579,1762348241142,-250.0,0.00017274,2]
[393225580,1762348241152,-250.0,0.00017274,2]
[393225581,1762348241162,-250.0,0.00017274,2]
[393225582,1762348241172,-278.08419191,0.00017274,2]
[393225583,1762348241181,-322.6107,0.00017274,2]
[393225584,1762348241191,-524.29785912,0.00017283,2]
[393225585,1762348241201,-500.0,0.00017283,2]
[393225586,1762348241211,-500.0,0.00017283,2]
[393225587,1762348241220,-500.0,0.00017283,2]
[393225588,1762348241230,-330.21585562,0.00017283,2]
[393225589,1762348241242,-500.0,0.00017283,2]
[393225590,1762348241251,-482.56534119,0.00017283,2]
[393225591,1762348241261,-627.05762213,0.00017283,2]
[393225592,1762348241272,-500.0,0.00017283,2]
[393225593,1762348241281,-500.0,0.00017283,2]
[393225594,1762348241291,-37941.62160341,0.00017284,2]
[393225595,1762348241308,-332.57952245,0.00017284,2]
[393225596,1762348241324,-1583.80000002,0.00017284,2]
[393225597,1762348241335,-3350.1,0.00017284,2]
[393225598,1762348241347,-364418.82155656,0.00017284,2]
[393225599,1762348241356,-1000.0,0.00017284,2]
[393225600,1762348241366,-19347.8693,0.00017284,2]
[393225601,1762348241376,-165.04661382,0.00017286,2]
[393225602,1762348241386,-5002.27644664,0.00017342,2]
[393225603,1762348241395,-175.40956515,0.00017343,2]
[393225604,1762348241405,-3689.60851884,0.00017343,2]
[393225605,1762348241415,-2446.0,0.00017352,2]
[393225606,1762348241424,-532.88987397,0.00017376,2]
[393225607,1762348241434,-314.31,0.00017384,2]
[393225608,1762348241443,-165.04661382,0.00017389,2]
[393225609,1762348241453,-500.0,0.00017399,2]
[393225610,1762348241463,-425.64626727,0.00017399,2]
[393225611,1762348241472,-500.0,0.00017399,2]
[393225612,1762348241483,-500.0,0.00017399,2]
[393225613,1762348241492,-500.0,0.00017399,2]
[393225614,1762348241502,-500.0,0.00017399,2]
[393225615,1762348241514,-500.0,0.00017399,2]
[393225616,1762348241524,-500.0,0.00017399,2]
[393225617,1762348241533,-641.3407631,0.00017399,2]
[393225618,1762348241543,-255.73,0.00017399,2]
[393225619,1762348241552,-500.0,0.00017399,2]
[393225620,1762348241563,-415.63,0.000174,2]
[393225621,1762348241573,-477.03,0.000174,2]
[393225622,1762348241582,-150.0,0.000174,2]
[393225623,1762348241592,-150.0,0.000174,2]
[393225624,1762348241602,-477.03,0.000174,2]
[393225625,1762348241611,-415.63,0.000174,2]
[393225626,1762348241621,-150.0,0.000174,2]
[393225627,1762348241632,-415.63,0.000174,2]
[393225628,1762348241641,-150.0,0.000174,2]
[393225629,1762348241651,-477.03,0.000174,2]
[393225630,1762348241661,-415.63,0.000174,2]
[393225631,1762348241670,-415.63,0.000174,2]
[393225632,1762348241680,-150.0,0.000174,2]
[393225633,1762348241689,-415.63,0.000174,2]
[393225634,1762348241698,-150.0,0.000174,2]
[393225635,1762348241707,-150.0,0.000174,2]
[393225636,1762348241716,-5002.27644664,0.00017422,2]
[393225637,1762348241725,-175.40956515,0.00017423,2]
[393225638,1762348241738,-3689.60851884,0.00017423,2]
[393225639,1762348241747,-3694.04819454,0.00017477,2]
[393225640,1762348241756,-165.04661382,0.00017491,2]
[393225641,1762348241765,-151.0,0.00017499,2]
[393225642,1762348241777,-477.03,0.000175,2]
[393225643,1762348241786,-477.03,0.000175,2]
[393225644,1762348241796,-5002.27644664,0.00017502,2]
[393225645,1762348241806,-175.40956515,0.00017502,2]
[393225646,1762348241815,-3689.60851884,0.00017502,2]
[393225647,1762348241825,-2446.0,0.00017516,2]
[393225648,1762348241834,-5585.0,0.00017534,2]
[393225649,1762348241845,-596.49,0.00017547,2]
[393225650,1762348241855,-500.0,0.00017576,2]
[393225651,1762348241864,-200.0,0.00017581,2]
[393225652,1762348241873,-5002.27644664,0.00017581,2]
[393225653,1762348241883,-175.40956515,0.00017582,2]
[393225654,1762348241892,-3689.60851884,0.00017582,2]
[393225655,1762348241903,-221.75791629,0.00017591,2]
[393225656,1762348241915,-165.04661382,0.00017593,2]
[393225657,1762348241924,-5268.69459254,0.00017595,2]
[393225658,1762348241933,-477.03,0.000176,2]
[393225659,1762348241942,-477.03,0.000176,2]
[393225660,1762348241952,-500.0,0.00017621,2]
[393225661,1762348241961,-500.0,0.00017621,2]
[393225662,1762348241971,-1000.0,0.00017621,2]
[393225663,1762348241980,-1000.0,0.00017621,2]
[393225664,1762348241989,-1000.0,0.00017621,2]
[393225665,1762348241998,-1000.0,0.00017621,2]
[393225666,1762348242008,-5585.0,0.00017622,2]
[393225667,1762348242017,-2500.0,0.00017636,3]
[393225668,1762348242027,-1001.94025157,0.0001764,2]